Department Family,Entity,Date Paid,Expense Type,Expense Area,Supplier,Transaction Number,AP Amount,,
Department of Health,East London NHS Foundation Trust,01/12/2021,SLA Charges,NCEL NCA,OAK TREE FOREST LTD,40384147,"181,184.15",,
Department of Health,East London NHS Foundation Trust,01/12/2021,Commissioning Other Contr,NCEL COLLAB CONTRA,ELYSIUM HEALTHCARE LTD,40416945,"28,837.80",,
Department of Health,East London NHS Foundation Trust,01/12/2021,Commissioning Other Contr,NCEL COLLAB CONTRA,ELYSIUM HEALTHCARE LTD,40416947,"35,592.60",,
Department of Health,East London NHS Foundation Trust,01/12/2021,Meeting expense/Room Hire,Trust Board,UCL PARTNERS,40384196,"50,000.00",,
Department of Health,East London NHS Foundation Trust,03/12/2021,SLA Charges,Newham Directorate,LONDON BOROUGH OF NEWHAM,40428668,"471,522.41",,
Department of Health,East London NHS Foundation Trust,03/12/2021,Legal / Prof Fees,ICT Team,KEYSTREAM HEALTHCARE RESOURCES LTD,40441124,"150,000.00",,
Department of Health,East London NHS Foundation Trust,03/12/2021,Legal / Prof Fees,ICT Team,KEYSTREAM HEALTHCARE RESOURCES LTD,40441124,"30,000.00",,
Department of Health,East London NHS Foundation Trust,08/12/2021,Capital charges,EF NCFMH,GH NEWHAM LTD,40429245,"519,470.68",,
Department of Health,East London NHS Foundation Trust,08/12/2021,Phone Rental and Calls,Digital Recharges,VIRGIN MEDIA LTD,40444443,"29,530.13",,
Department of Health,East London NHS Foundation Trust,08/12/2021,Rent,EF C-UEL Foot Health Service,UNIVERSITY OF EAST LONDON,40446584,"30,672.00",,
Department of Health,East London NHS Foundation Trust,08/12/2021,Computer Software/License,Medical Director,SARD JV LTD,40238129,"22,594.00",,
Department of Health,East London NHS Foundation Trust,10/12/2021,Commissioning Other Contr,NCEL NCA,OAK TREE FOREST LTD,40522995,"129,417.25",,
Department of Health,East London NHS Foundation Trust,10/12/2021,Commissioning Other Contr,NCEL NCA,CYGNET HEALTHCARE LTD,40523083,"25,036.84",,
Department of Health,East London NHS Foundation Trust,10/12/2021,Drug Supplies,Pharmacy Department,ALLIANCE HEALTHCARE DISTRIBUTION LTD,40327164,14.94,,
Department of Health,East London NHS Foundation Trust,10/12/2021,Drug Supplies,Pharmacy Department,ALLIANCE HEALTHCARE DISTRIBUTION LTD,40327164,"31,580.34",,
Department of Health,East London NHS Foundation Trust,10/12/2021,Drug Supplies,Pharmacy Department,ALLIANCE HEALTHCARE DISTRIBUTION LTD,40327164,2.06,,
Department of Health,East London NHS Foundation Trust,10/12/2021,Drug Supplies,Pharmacy Department,ALLIANCE HEALTHCARE DISTRIBUTION LTD,40327164,45.60,,
Department of Health,East London NHS Foundation Trust,10/12/2021,Drug Supplies,Pharmacy Department,ALLIANCE HEALTHCARE DISTRIBUTION LTD,40327164,120.00,,
Department of Health,East London NHS Foundation Trust,10/12/2021,Drug Supplies,Pharmacy Department,ALLIANCE HEALTHCARE DISTRIBUTION LTD,40327164,30.48,,
Department of Health,East London NHS Foundation Trust,10/12/2021,Drug Supplies,Pharmacy Department,ALLIANCE HEALTHCARE DISTRIBUTION LTD,40327164,3.96,,
Department of Health,East London NHS Foundation Trust,10/12/2021,Drug Supplies,Pharmacy Department,ALLIANCE HEALTHCARE DISTRIBUTION LTD,40327164,8.40,,
Department of Health,East London NHS Foundation Trust,10/12/2021,Drug Supplies,Pharmacy Department,ALLIANCE HEALTHCARE DISTRIBUTION LTD,40327164,7.50,,
Department of Health,East London NHS Foundation Trust,10/12/2021,Drug Supplies,Pharmacy Department,ALLIANCE HEALTHCARE DISTRIBUTION LTD,40327164,2.88,,
Department of Health,East London NHS Foundation Trust,10/12/2021,Drug Supplies,Pharmacy Department,ALLIANCE HEALTHCARE DISTRIBUTION LTD,40327164,4.46,,
Department of Health,East London NHS Foundation Trust,10/12/2021,Drug Supplies,Pharmacy Department,ALLIANCE HEALTHCARE DISTRIBUTION LTD,40327164,59.29,,
Department of Health,East London NHS Foundation Trust,15/12/2021,Bought in Srv Fr NHS,B-Liaison and Diversion,HERTFORDSHIRE PARTNERSHIP NHS FOUNDATION TRUST,40428563,"91,110.29",,
Department of Health,East London NHS Foundation Trust,15/12/2021,CAMHS,Bedfordshire Directorate,CHUMS,40186484,"8,628.20",,
Department of Health,East London NHS Foundation Trust,15/12/2021,CAMHS,Bedfordshire Directorate,CHUMS,40186484,"43,141.00",,
Department of Health,East London NHS Foundation Trust,15/12/2021,Rent,EF Beds CHS Properties,COMMUNITY HEALTH PARTNERSHIPS LTD,40423990,"26,364.49",,
Department of Health,East London NHS Foundation Trust,15/12/2021,Rent,EF East Ham Care Centre,COMMUNITY HEALTH PARTNERSHIPS LTD,40423995,"480,379.19",,
Department of Health,East London NHS Foundation Trust,15/12/2021,Rent,EF Centre Manor Park,COMMUNITY HEALTH PARTNERSHIPS LTD,40446104,"56,521.68",,
Department of Health,East London NHS Foundation Trust,15/12/2021,Rent,EF Beaumont House,COMMUNITY HEALTH PARTNERSHIPS LTD,40446105,"72,200.65",,
Department of Health,East London NHS Foundation Trust,15/12/2021,SLA Charges,EF Barts Soft FM - Mile End,BARTS HEALTH NHS TRUST,40496031,"25,623.35",,
Department of Health,East London NHS Foundation Trust,15/12/2021,SLA Charges,EF Barts Soft FM - Mile End,BARTS HEALTH NHS TRUST,40532276,"25,360.28",,
Department of Health,East London NHS Foundation Trust,15/12/2021,Phone Rental and Calls,Trustwide,VODAFONE LTD,40532289,"41,322.87",,
Department of Health,East London NHS Foundation Trust,15/12/2021,SLA Charges,NCEL SLA - NELFT,NORTH EAST LONDON NHS FOUNDATION TRUST,40553427,"421,700.62",,
Department of Health,East London NHS Foundation Trust,15/12/2021,SLA Charges,NCEL SLA - NELFT,NORTH EAST LONDON NHS FOUNDATION TRUST,40553428,"43,770.83",,
Department of Health,East London NHS Foundation Trust,15/12/2021,Computer Hardware Purch,Digital Infrastructure,UNIFII LTD,40307732,"56,365.20",,
Department of Health,East London NHS Foundation Trust,15/12/2021,Computer Hardware Purch,Digital Infrastructure,UNIFII LTD,40307732,"11,273.04",,
Department of Health,East London NHS Foundation Trust,17/12/2021,Phone Rental and Calls,Trustwide,VODAFONE CORPORATE LTD,40532342,"28,058.22",,
Department of Health,East London NHS Foundation Trust,22/12/2021,Bldg/Eng Equip Maint/Rep,EF John Howard Estate,RYDON MAINTENANCE LTD,40459714,"38,363.34",,
Department of Health,East London NHS Foundation Trust,22/12/2021,Computer Hardware Purch,Informatics,ANS GROUP PLC,39968623,"35,846.84",,
Department of Health,East London NHS Foundation Trust,22/12/2021,Computer Hardware Purch,Informatics,ANS GROUP PLC,39968623,"7,169.37",,
Department of Health,East London NHS Foundation Trust,22/12/2021,Drug Supplies,Pharmacy Department,JANSSEN CILAG LTD,40629157,"16,331.64",,
Department of Health,East London NHS Foundation Trust,22/12/2021,Drug Supplies,Pharmacy Department,JANSSEN CILAG LTD,40629157,"2,390.96",,
Department of Health,East London NHS Foundation Trust,22/12/2021,Drug Supplies,Pharmacy Department,JANSSEN CILAG LTD,40629157,"5,877.60",,
Department of Health,East London NHS Foundation Trust,22/12/2021,Drug Supplies,Pharmacy Department,JANSSEN CILAG LTD,40629157,551.76,,
Department of Health,East London NHS Foundation Trust,22/12/2021,Drug Supplies,Pharmacy Department,JANSSEN CILAG LTD,40629157,"2,204.10",,
Department of Health,East London NHS Foundation Trust,22/12/2021,Drug Supplies,Pharmacy Department,JANSSEN CILAG LTD,40629157,942.21,,
Department of Health,East London NHS Foundation Trust,22/12/2021,Drug Supplies,Pharmacy Department,JANSSEN CILAG LTD,40629157,"3,533.31",,
Department of Health,East London NHS Foundation Trust,22/12/2021,Drug Supplies,Pharmacy Department,JANSSEN CILAG LTD,40629157,"27,873.89",,
Department of Health,East London NHS Foundation Trust,22/12/2021,Drug Supplies,Pharmacy Department,JANSSEN CILAG LTD,40629157,"4,940.78",,
Department of Health,East London NHS Foundation Trust,22/12/2021,Drug Supplies,Pharmacy Department,JANSSEN CILAG LTD,40629157,"9,239.56",,
Department of Health,East London NHS Foundation Trust,22/12/2021,Drug Supplies,Pharmacy Department,JANSSEN CILAG LTD,40629157,"13,133.92",,
Department of Health,East London NHS Foundation Trust,22/12/2021,Drug Supplies,Pharmacy Department,JANSSEN CILAG LTD,40629167,"5,653.26",,
Department of Health,East London NHS Foundation Trust,22/12/2021,Drug Supplies,Pharmacy Department,JANSSEN CILAG LTD,40629167,183.92,,
Department of Health,East London NHS Foundation Trust,22/12/2021,Drug Supplies,Pharmacy Department,JANSSEN CILAG LTD,40629167,"1,224.50",,
Department of Health,East London NHS Foundation Trust,22/12/2021,Drug Supplies,Pharmacy Department,JANSSEN CILAG LTD,40629167,"4,318.49",,
Department of Health,East London NHS Foundation Trust,22/12/2021,Drug Supplies,Pharmacy Department,JANSSEN CILAG LTD,40629167,"2,071.94",,
Department of Health,East London NHS Foundation Trust,22/12/2021,Drug Supplies,Pharmacy Department,JANSSEN CILAG LTD,40629167,"3,116.96",,
Department of Health,East London NHS Foundation Trust,22/12/2021,Drug Supplies,Pharmacy Department,JANSSEN CILAG LTD,40629167,"8,565.60",,
Department of Health,East London NHS Foundation Trust,22/12/2021,Prostheses,C-NUHT Pat Appliances,OPCARE LTD,39008546,"-57,025.20",,
Department of Health,East London NHS Foundation Trust,24/12/2021,Bldg/Eng Equip Maint/Rep,Estates,BARRY MORGAN LTD,40639298,"26,650.00",,
Department of Health,East London NHS Foundation Trust,24/12/2021,CAMHS,Bedfordshire Directorate,CHUMS,40513284,"8,628.20",,
Department of Health,East London NHS Foundation Trust,24/12/2021,CAMHS,Bedfordshire Directorate,CHUMS,40513284,"43,141.00",,
Department of Health,East London NHS Foundation Trust,24/12/2021,Contractual Clinical Srv,Occupational Health,TEAM PREVENT UK LTD,40654163,"28,780.67",,
Department of Health,East London NHS Foundation Trust,24/12/2021,External Consultancy Fees,B- Locality Mgmt,COMPASS WELLBEING CIC,40262632,"99,032.00",,
Department of Health,East London NHS Foundation Trust,24/12/2021,External Consultancy Fees,B- Locality Mgmt,COMPASS WELLBEING CIC,40382223,"34,378.00",,
Department of Health,East London NHS Foundation Trust,24/12/2021,Legal / Prof Fees,NEL VACCINATION PAC,PULSE HEALTHCARE LTD,40424010,"37,400.00",,
Department of Health,East London NHS Foundation Trust,24/12/2021,Wheelchairs,CHB - Wheelchairs Service,MILLBROOK HEALTHCARE LTD,40654382,"31,868.76",,
Department of Health,East London NHS Foundation Trust,24/12/2021,Legal / Prof Fees,NEL VACCINATION PAC,PULSE HEALTHCARE LTD,39331056,"37,400.00",,
Department of Health,East London NHS Foundation Trust,24/12/2021,Legal / Prof Fees,NEL VACCINATION PAC,PULSE HEALTHCARE LTD,39704441,"37,400.00",,
Department of Health,East London NHS Foundation Trust,24/12/2021,Photocopying Costs,Corporate Directorate,XEROX (UK) LTD,40511329,"38,148.71",,
Department of Health,East London NHS Foundation Trust,24/12/2021,Travel Costs,Corporate Directorate,CORPORATE TRAVEL MANAGEMENT NORTH LTD,40571127,"41,092.41",,
Department of Health,East London NHS Foundation Trust,24/12/2021,Office Supplies,Corporate Directorate,CLARES OFFICE SUPPLIES LTD,40583993,"27,630.76",,
Department of Health,East London NHS Foundation Trust,29/12/2021,Computer Hardware Purch,ICT Team,INSIGHT DIRECT (UK) LTD,40587999,"68,040.00",,
Department of Health,East London NHS Foundation Trust,29/12/2021,Computer Hardware Purch,ICT Team,INSIGHT DIRECT (UK) LTD,40587999,"13,608.00",,
Department of Health,East London NHS Foundation Trust,29/12/2021,Printing Costs,Digital Infrastructure,APOGEE CORPORATION LTD,40648643,"48,082.80",,
Department of Health,East London NHS Foundation Trust,29/12/2021,Rent,L-Estates and Facilities,CHAMBERLAIN GROUP (THE),40496990,"47,500.00",,
Department of Health,East London NHS Foundation Trust,29/12/2021,Drug Supplies,Pharmacy Department,ALLIANCE HEALTHCARE DISTRIBUTION LTD,40478355,31.25,,
Department of Health,East London NHS Foundation Trust,29/12/2021,Drug Supplies,Pharmacy Department,ALLIANCE HEALTHCARE DISTRIBUTION LTD,40478355,"26,316.95",,
Department of Health,East London NHS Foundation Trust,29/12/2021,Drug Supplies,Pharmacy Department,ALLIANCE HEALTHCARE DISTRIBUTION LTD,40478355,21.48,,
Department of Health,East London NHS Foundation Trust,29/12/2021,Drug Supplies,Pharmacy Department,ALLIANCE HEALTHCARE DISTRIBUTION LTD,40478355,10.73,,
Department of Health,East London NHS Foundation Trust,29/12/2021,Drug Supplies,Pharmacy Department,ALLIANCE HEALTHCARE DISTRIBUTION LTD,40478355,1.46,,
Department of Health,East London NHS Foundation Trust,29/12/2021,Drug Supplies,Pharmacy Department,ALLIANCE HEALTHCARE DISTRIBUTION LTD,40478355,4.50,,
Department of Health,East London NHS Foundation Trust,29/12/2021,Drug Supplies,Pharmacy Department,ALLIANCE HEALTHCARE DISTRIBUTION LTD,40478355,33.71,,
Department of Health,East London NHS Foundation Trust,29/12/2021,Drug Supplies,Pharmacy Department,ALLIANCE HEALTHCARE DISTRIBUTION LTD,40478355,81.06,,
Department of Health,East London NHS Foundation Trust,29/12/2021,Drug Supplies,Pharmacy Department,ALLIANCE HEALTHCARE DISTRIBUTION LTD,40478355,55.92,,
Department of Health,East London NHS Foundation Trust,29/12/2021,Drug Supplies,Pharmacy Department,ALLIANCE HEALTHCARE DISTRIBUTION LTD,40478355,73.44,,
Department of Health,East London NHS Foundation Trust,29/12/2021,Drug Supplies,Pharmacy Department,ALLIANCE HEALTHCARE DISTRIBUTION LTD,40478355,11.92,,
Department of Health,East London NHS Foundation Trust,29/12/2021,Drug Supplies,Pharmacy Department,ALLIANCE HEALTHCARE DISTRIBUTION LTD,40478355,4.44,,
Department of Health,East London NHS Foundation Trust,31/12/2021,Phone Rental and Calls,Digital Infrastructure,UKCLOUD LTD,40725747,"80,893.40",,
Department of Health,East London NHS Foundation Trust,31/12/2021,SLA Charges,NCEL NCA,OAK TREE FOREST LTD,40716805,"313,941.20",,
